{"text_format":"1","workbook":"xlsx","n_sheets":3,"sheets":["Лист1","Лист2","Лист3"],"not_rendered":{"charts":0,"images":0,"macros":1,"external_links":0,"defined_names":0,"comments":0,"pivot_tables":0},"unopened":[],"bounds":{"document_bytes":16777216,"sheet_cells":100000,"rows_first":2000,"rows_last":500,"rows_between":2000,"halvings":0,"cell_chars":16384,"cell_head_chars":4096},"cells_cut":0,"cells_raw":0,"read":"whole","date_system":"1900"}

{"sheet":"Лист1","index":0,"n_rows":7,"n_cols":15,"rows_kept":7,"cut":false,"hidden":false,"merged":[]}
[1,83,79,4,null,null,null,null,40,40,3]
[2,84,80,4,2,null,null,null,null,null,37,40,7]
[3,83,81,2,3,null,null,null,null,null,null,null,33,40,10]
[null,8,0,8,null,null,null,null,null,null,null,null,null,null,8]
[null,{"$f":"SUM(B1:B3) + B4","v":258},{"$f":"SUM(C1:C3)","v":240},{"$f":"SUM(D1:D3) + D4","v":18}]
[]
[null,null,null,null,null,null,null,null,40,40,40,40,40,40,18]

{"sheet":"Лист2","index":1,"n_rows":20,"n_cols":23,"rows_kept":20,"cut":false,"hidden":false,"merged":[]}
[null,null,null,null,null,null,null,null,null,null,null,null,null,null,null,null,null,"Вставь","Осталось добить"]
[7,null,null,null,null,null,null,null,null,null,null,null,null,null,null,null,{"$f":"SUM(A2:P2)","v":7},{"$f":"Лист1!A1","v":1},{"$f":"R2-Q2","v":-6}]
[7,null,null,null,null,null,null,null,null,null,null,null,null,null,null,null,{"$f":"SUM(A3:P3)","v":7},{"$f":"Лист1!A2","v":2},{"$f":"R3-Q3","v":-5}]
[7,null,null,null,null,null,null,null,null,null,null,null,null,null,null,null,7,{"$f":"Лист1!A3","v":3},-4," "]
[7,null,null,null,null,null,null,null,null,null,null,null,null,null,null,null,7,{"$f":"Лист1!A4","v":0},-7]
[7,null,null,null,null,null,null,null,null,null,null,null,null,null,null,null,7,{"$f":"Лист1!A5","v":0},-7]
[5,2,null,null,null,null,null,null,null,null,null,null,null,null,null,null,7,{"$f":"Лист1!A6","v":0},-7,null,null," "]
[null,7,null,null,null,null,null,null,null,null,null,null,null,null,null,null,7,{"$f":"Лист1!A7","v":0},-7]
[null,7,null,null,null,null,null,null,null,null,null,null,null,null,null,null,7,{"$f":"Лист1!A8","v":0},-7]
[null,6,null,null,null,null,null,null,null,null,null,null,null,null,null,null,6,{"$f":"Лист1!A9","v":0},-6,null,null," "]
[null,7,null,null,null,null,null,null,null,null,null,null,null,null,null,null,7,{"$f":"Лист1!A10","v":0},-7]
[null,3,null,null,null,null,null,null,null,null,null,null,null,null,null,null,3,{"$f":"Лист1!A11","v":0},-3]
[null,8,null,null,null,null,null,null,null,null,null,null,null,null,null,null,8,{"$f":"Лист1!A12","v":0},-8,null," "]
[{"$f":"SUM(A2:A13)","v":40},{"$f":"SUM(B2:B13)","v":40},0,0,0,0,0,0,0,0,0,0,0,0,0,0]
[40,40,40,40,40,40,40,40,40,40,40,40,40,40,40,40,null,null,null,null,null,null," "]
[{"$f":"A15-A14","v":0},{"$f":"B15-B14","v":0},40,40,40,40,40,40,40,40,40,40,40,40,40,{"$f":"P15-P14","v":40}]
[]
[]
[]
[1,2,3,4,5,6,7,8,9,10,11,12,13,14,15,16]

{"sheet":"Лист3","index":2,"n_rows":53,"n_cols":16,"rows_kept":53,"cut":false,"hidden":false,"merged":[]}
["Тема 1.","Комплектация разрешительной документации. Контроль поступающей проектно-сметной документации. Требования к составу и содержанию проектной документации",null,null,null,null,null,null,null,null,null,null,null,null,null,{"$f":"CONCATENATE(A1,\" \",B1)","v":"Тема 1. Комплектация разрешительной документации. Контроль поступающей проектно-сметной документации. Требования к составу и содержанию проектной документации"}]
["Тема 2.","Обеспечение деятельности в области пожарной безопасности нормативными и справочными документами. Общие термины и определения",null,null,null,null,null,null,null,null,null,null,null,null,null,{"$f":"CONCATENATE(A2,\" \",B2)","v":"Тема 2. Обеспечение деятельности в области пожарной безопасности нормативными и справочными документами. Общие термины и определения"}]
["Тема 3.","Задачи Государственной противопожарной службы (ГПС). Научно-техническое обеспечение пожарной безопасности",null,null,null,null,null,null,null,null,null,null,null,null,null,"Тема 3. Задачи Государственной противопожарной службы (ГПС). Научно-техническое обеспечение пожарной безопасности"]
["Тема 4.","Пожарная безопасность объектов защиты",null,null,null,null,null,null,null,null,null,null,null,null,null,"Тема 4. Пожарная безопасность объектов защиты"]
["Тема 5.","Определение категорий помещений и зданий по взрывопожарной и пожарной опасности",null,null,null,null,null,null,null,null,null,null,null,null,null,"Тема 5. Определение категорий помещений и зданий по взрывопожарной и пожарной опасности"]
["Тема 6.","Порядок разработки и согласования проектной документации на системы противопожарной защиты",null,null,null,null,null,null,null,null,null,null,null,null,null,"Тема 6. Порядок разработки и согласования проектной документации на системы противопожарной защиты"]
["Тема 7.","Порядок эксплуатации и технического обслуживания автоматических систем (установок) пожаротушения. Молниезащит",null,null,null,null,null,null,null,null,null,null,null,null,null,"Тема 7. Порядок эксплуатации и технического обслуживания автоматических систем (установок) пожаротушения. Молниезащит"]
["Тема 8.","Диспетчеризация и проведение пусконаладочных работ",null,null,null,null,null,null,null,null,null,null,null,null,null,"Тема 8. Диспетчеризация и проведение пусконаладочных работ"]
["Тема 9.","Сертификация и лицензирование деятельности в области пожарной безопасности",null,null,null,null,null,null,null,null,null,null,null,null,null,"Тема 9. Сертификация и лицензирование деятельности в области пожарной безопасности"]
["Тема 10.","Мероприятия по технике безопасности и охране труда при производстве подготовительных работ на объекте",null,null,null,null,null,null,null,null,null,null,null,null,null,"Тема 10. Мероприятия по технике безопасности и охране труда при производстве подготовительных работ на объекте"]
["Тема 11.",null,null,null,null,null,null,null,null,null,null,null,null,null,null,"Тема 11. "]
["Тема 12.",null,null,null,null,null,null,null,null,null,null,null,null,null,null,"Тема 12. "]
["Тема 13.",null,null,null,null,null,null,null,null,null,null,null,null,null,null,"Тема 13. "]
["Тема 14.",null,null,null,null,null,null,null,null,null,null,null,null,null,null,"Тема 14. "]
["Тема 15.",null,null,null,null,null,null,null,null,null,null,null,null,null,null,"Тема 15. "]
["Тема 16.",null,null,null,null,null,null,null,null,null,null,null,null,null,null,"Тема 16. "]
["Тема 17.",null,null,null,null,null,null,null,null,null,null,null,null,null,null,"Тема 17. "]
[]
[]
[{"$f":"P1","v":"Тема 1. Комплектация разрешительной документации. Контроль поступающей проектно-сметной документации. Требования к составу и содержанию проектной документации"},null,null,null,null,null,null,null,null,null,null,null,null,null,"Тезисно о лекции для слушателей, не деля на пункты, единым текстом, не более 5 предложений - ",{"$f":"CONCATENATE(O20,\" \",B1)","v":"Тезисно о лекции для слушателей, не деля на пункты, единым текстом, не более 5 предложений -  Комплектация разрешительной документации. Контроль поступающей проектно-сметной документации. Требования к составу и содержанию проектной документации"}]
[null,null,null,null,null,null,null,null,null,null,null,null,null,null,"Тезисно о лекции для слушателей, не деля на пункты, единым текстом, не более 5 предложений - ",{"$f":"CONCATENATE(O21,\" \",B2)","v":"Тезисно о лекции для слушателей, не деля на пункты, единым текстом, не более 5 предложений -  Обеспечение деятельности в области пожарной безопасности нормативными и справочными документами. Общие термины и определения"}]
[null,null,null,null,null,null,null,null,null,null,null,null,null,null,"Тезисно о лекции для слушателей, не деля на пункты, единым текстом, не более 5 предложений - ","Тезисно о лекции для слушателей, не деля на пункты, единым текстом, не более 5 предложений -  Задачи Государственной противопожарной службы (ГПС). Научно-техническое обеспечение пожарной безопасности"]
[{"$f":"P2","v":"Тема 2. Обеспечение деятельности в области пожарной безопасности нормативными и справочными документами. Общие термины и определения"},null,null,null,null,null,null,null,null,null,null,null,null,null,"Тезисно о лекции для слушателей, не деля на пункты, единым текстом, не более 5 предложений - ","Тезисно о лекции для слушателей, не деля на пункты, единым текстом, не более 5 предложений -  Пожарная безопасность объектов защиты"]
[null,null,null,null,null,null,null,null,null,null,null,null,null,null,"Тезисно о лекции для слушателей, не деля на пункты, единым текстом, не более 5 предложений - ","Тезисно о лекции для слушателей, не деля на пункты, единым текстом, не более 5 предложений -  Определение категорий помещений и зданий по взрывопожарной и пожарной опасности"]
[null,null,null,null,null,null,null,null," ",null,null,null,null,null,"Тезисно о лекции для слушателей, не деля на пункты, единым текстом, не более 5 предложений - ","Тезисно о лекции для слушателей, не деля на пункты, единым текстом, не более 5 предложений -  Порядок разработки и согласования проектной документации на системы противопожарной защиты"]
[{"$f":"P3","v":"Тема 3. Задачи Государственной противопожарной службы (ГПС). Научно-техническое обеспечение пожарной безопасности"},null,null,null,null,null,null,null,null,null,null,null,null,null,"Тезисно о лекции для слушателей, не деля на пункты, единым текстом, не более 5 предложений - ","Тезисно о лекции для слушателей, не деля на пункты, единым текстом, не более 5 предложений -  Порядок эксплуатации и технического обслуживания автоматических систем (установок) пожаротушения. Молниезащит"]
[null,null,null,null,null,null,null,null,null,null,null,null,null,null,"Тезисно о лекции для слушателей, не деля на пункты, единым текстом, не более 5 предложений - ","Тезисно о лекции для слушателей, не деля на пункты, единым текстом, не более 5 предложений -  Диспетчеризация и проведение пусконаладочных работ"]
[null,null,null,null,null,null,null,null,null,null,null,null,null,null,"Тезисно о лекции для слушателей, не деля на пункты, единым текстом, не более 5 предложений - ","Тезисно о лекции для слушателей, не деля на пункты, единым текстом, не более 5 предложений -  Сертификация и лицензирование деятельности в области пожарной безопасности"]
[{"$f":"P4","v":"Тема 4. Пожарная безопасность объектов защиты"},null,null,null,null,null,null,null,null,null,null,null,null,null,"Тезисно о лекции для слушателей, не деля на пункты, единым текстом, не более 5 предложений - ","Тезисно о лекции для слушателей, не деля на пункты, единым текстом, не более 5 предложений -  Мероприятия по технике безопасности и охране труда при производстве подготовительных работ на объекте"]
[null,null,null,null,null,null,null,null,null,null,null,null,null,null,"Тезисно о лекции для слушателей, не деля на пункты, единым текстом, не более 5 предложений - ","Тезисно о лекции для слушателей, не деля на пункты, единым текстом, не более 5 предложений -  "]
[null,null,null,null,null,null,null,null,null,null,null,null,null,null,"Тезисно о лекции для слушателей, не деля на пункты, единым текстом, не более 5 предложений - ","Тезисно о лекции для слушателей, не деля на пункты, единым текстом, не более 5 предложений -  "]
[{"$f":"P5","v":"Тема 5. Определение категорий помещений и зданий по взрывопожарной и пожарной опасности"},null,null,null,null,null,null,null,null,null,null,null,null,null,"Тезисно о лекции для слушателей, не деля на пункты, единым текстом, не более 5 предложений - ","Тезисно о лекции для слушателей, не деля на пункты, единым текстом, не более 5 предложений -  "]
[null,null,null,null,null,null,null,null,null,null,null,null,null,null,"Тезисно о лекции для слушателей, не деля на пункты, единым текстом, не более 5 предложений - ","Тезисно о лекции для слушателей, не деля на пункты, единым текстом, не более 5 предложений -  "]
[null,null,null,null,null,null,null,null,null,null,null,null,null,null,"Тезисно о лекции для слушателей, не деля на пункты, единым текстом, не более 5 предложений - ","Тезисно о лекции для слушателей, не деля на пункты, единым текстом, не более 5 предложений -  "]
[{"$f":"P6","v":"Тема 6. Порядок разработки и согласования проектной документации на системы противопожарной защиты"},null,null,null,null,null,null,null,null,null,null,null,null,null,"Тезисно о лекции для слушателей, не деля на пункты, единым текстом, не более 5 предложений - ","Тезисно о лекции для слушателей, не деля на пункты, единым текстом, не более 5 предложений -  "]
[null,null,null,null,null,null,null,null,null,null,null,null,null,null,"Тезисно о лекции для слушателей, не деля на пункты, единым текстом, не более 5 предложений - ","Тезисно о лекции для слушателей, не деля на пункты, единым текстом, не более 5 предложений -  "]
[null,null,null,null,null,null,null,null,null,null,null,null,null,null,"Тезисно о лекции для слушателей, не деля на пункты, единым текстом, не более 5 предложений - ","Тезисно о лекции для слушателей, не деля на пункты, единым текстом, не более 5 предложений -  "]
[{"$f":"P7","v":"Тема 7. Порядок эксплуатации и технического обслуживания автоматических систем (установок) пожаротушения. Молниезащит"},null,null,null,null,null,null,null,null,null,null,null,null,null,"Тезисно о лекции для слушателей, не деля на пункты, единым текстом, не более 5 предложений - ","Тезисно о лекции для слушателей, не деля на пункты, единым текстом, не более 5 предложений -  "]
[null,null,null,null,null,null,null,null,null,null,null,null,null,null,"Тезисно о лекции для слушателей, не деля на пункты, единым текстом, не более 5 предложений - ","Тезисно о лекции для слушателей, не деля на пункты, единым текстом, не более 5 предложений -  "]
[null,null,null,null,null,null,null,null,null,null,null,null,null,null,"Тезисно о лекции для слушателей, не деля на пункты, единым текстом, не более 5 предложений - ","Тезисно о лекции для слушателей, не деля на пункты, единым текстом, не более 5 предложений -  "]
[{"$f":"P8","v":"Тема 8. Диспетчеризация и проведение пусконаладочных работ"},null,null,null,null,null,null,null,null,null,null,null,null,null,"Тезисно о лекции для слушателей, не деля на пункты, единым текстом, не более 5 предложений - ","Тезисно о лекции для слушателей, не деля на пункты, единым текстом, не более 5 предложений -  "]
[null,null,null,null,null,null,null,null,null,null,null,null,null,null,"Тезисно о лекции для слушателей, не деля на пункты, единым текстом, не более 5 предложений - ","Тезисно о лекции для слушателей, не деля на пункты, единым текстом, не более 5 предложений -  "]
[null,null,null,null,null,null,null,null,null,null,null,null,null,null,"Тезисно о лекции для слушателей, не деля на пункты, единым текстом, не более 5 предложений - ","Тезисно о лекции для слушателей, не деля на пункты, единым текстом, не более 5 предложений -  "]
[{"$f":"P9","v":"Тема 9. Сертификация и лицензирование деятельности в области пожарной безопасности"},null,null,null,null,null,null,null,null,null,null,null,null,null,"Тезисно о лекции для слушателей, не деля на пункты, единым текстом, не более 5 предложений - ","Тезисно о лекции для слушателей, не деля на пункты, единым текстом, не более 5 предложений -  "]
[null,null,null,null,null,null,null,null,null,null,null,null,null,null,"Тезисно о лекции для слушателей, не деля на пункты, единым текстом, не более 5 предложений - ","Тезисно о лекции для слушателей, не деля на пункты, единым текстом, не более 5 предложений -  "]
[null,null,null,null,null,null,null,null,null,null,null,null,null,null,"Тезисно о лекции для слушателей, не деля на пункты, единым текстом, не более 5 предложений - ","Тезисно о лекции для слушателей, не деля на пункты, единым текстом, не более 5 предложений -  "]
[{"$f":"P10","v":"Тема 10. Мероприятия по технике безопасности и охране труда при производстве подготовительных работ на объекте"},null,null,null,null,null,null,null,null,null,null,null,null,null,"Тезисно о лекции для слушателей, не деля на пункты, единым текстом, не более 5 предложений - ","Тезисно о лекции для слушателей, не деля на пункты, единым текстом, не более 5 предложений -  "]
[null,null,null,null,null,null,null,null,null,null,null,null,null,null,"Тезисно о лекции для слушателей, не деля на пункты, единым текстом, не более 5 предложений - ","Тезисно о лекции для слушателей, не деля на пункты, единым текстом, не более 5 предложений -  "]
[null,null,null,null,null,null,null,null,null,null,null,null,null,null,"Тезисно о лекции для слушателей, не деля на пункты, единым текстом, не более 5 предложений - ","Тезисно о лекции для слушателей, не деля на пункты, единым текстом, не более 5 предложений -  "]
[{"$f":"P11","v":"Тема 11. "},null,null,null,null,null,null,null,null,null,null,null,null,null,"Тезисно о лекции для слушателей, не деля на пункты, единым текстом, не более 5 предложений - ","Тезисно о лекции для слушателей, не деля на пункты, единым текстом, не более 5 предложений -  "]
[null,null,null,null,null,null,null,null,null,null,null,null,null,null,null," "]
[null,null,null,null,null,null,null,null,null,null,null,null,null,null,null," "]
[null,null,null,null,null,null,null,null,null,null,null,null,null,null,null," "]